fUSD/lending_fUSD_20240328
["ID","MTS","AMOUNT","RATE_DAILY","PERIOD"]
[320856345,1711640393202,406.48055709,0.0001,2]
[320856346,1711640415468,2301.36467321,0.00021,2]
[320856347,1711640484632,2620.0,0.00040733,33]
[320856348,1711640628937,152.30107003,0.00040715,36]
[320856349,1711640806138,-332.33479674,0.00028878,2]
[320856350,1711640806158,-13.27866722,0.00028879,2]
[320856351,1711640860689,152.95958762,0.0003,120]
[320856352,1711640874752,299.99,0.00028895,12]
[320856363,1711641031709,-155.0,0.00028689,2]
[320856365,1711641031719,-281.84908556,0.0002869,2]
[320856367,1711641031729,-164.3717067,0.0002869,2]
[320856369,1711641031738,-1212.50002883,0.00028789,2]
[320856371,1711641031753,-9347.91905105,0.00028789,2]
[320856373,1711641031762,-3006.2098,0.0002879,2]
[320856375,1711641031771,-262.20500539,0.00028888,2]
[320856377,1711641031781,-631.3725655,0.00028891,2]
[320856380,1711641031791,-2083.12450284,0.00028891,2]
[320856382,1711641031801,-485.53986145,0.00028892,2]
[320856384,1711641031810,-1629.79412417,0.00028893,2]
[320856386,1711641031819,-1218.8350906,0.00028893,2]
[320856388,1711641031845,-560.88004955,0.00028893,2]
[320856389,1711641032371,-562.36879897,0.00028893,2]
[320856390,1711641032381,-406.14776931,0.00028893,2]
[320856391,1711641032391,-202.99503572,0.00028893,2]
[320856392,1711641032400,-155.64136116,0.00028893,2]
[320856393,1711641032410,-4534.20430389,0.00028894,2]
[320856396,1711641032724,-404.88162964,0.00028894,2]
[320856397,1711641032734,-437.92703776,0.00028895,2]
[320856398,1711641032746,-677.20892773,0.00028895,2]
[320856399,1711641032787,-4961.33691802,0.00028895,2]
[320856400,1711641032799,-4212.26054406,0.00028895,2]
[320856401,1711641032809,-224.99,0.00028895,8]
[320856402,1711641032819,-546.71,0.00028895,2]
[320856403,1711641032829,-573.21,0.00028895,2]
[320856404,1711641032841,-1249.79499461,0.000297,2]
[320856405,1711641032853,-9303.12696,0.0002999,2]
[320856406,1711641032863,-19324.76907015,0.0003,4]
[320856407,1711641032875,-499.99,0.0003,2]
[320856408,1711641032886,-728.87863177,0.00030536,25]
[320856409,1711641032896,-176.19,0.00034789,2]
[320856410,1711641032906,-164.3717067,0.0003576,2]
[320856411,1711641032916,-632.0,0.000359,2]
[320856412,1711641032928,-10136.43029432,0.000397,2]
[320856413,1711641032939,-457.4,0.000397,15]
[320856414,1711641032950,-150.0,0.00040511,2]
[320856415,1711641032960,-2530.7208,0.00040609,2]
[320856416,1711641032970,-682.1145,0.00040609,2]
[320856417,1711641032980,-7847.4355,0.00040609,2]
[320856418,1711641032990,-5640.602,0.00040609,2]
[320856419,1711641033000,-4918.6528,0.00040609,2]
[320856420,1711641033010,-163.2,0.00041761,2]
[320856421,1711641033019,-823.45,0.00041942,2]
[320856422,1711641033029,-200.0,0.00041958,2]
[320856423,1711641033042,-250.0,0.00041972,2]
[320856424,1711641033052,-3314.81,0.00041974,2]
[320856425,1711641033064,-150.0,0.00041975,2]
[320856426,1711641033074,-3194.04,0.00041998,2]
[320856427,1711641033083,-713.51,0.00042006,2]
[320856428,1711641033094,-1782.49,0.0004209,2]
[320856429,1711641033103,-1909.38,0.0004209,2]
[320856430,1711641033113,-161.37,0.00042104,2]
[320856431,1711641033122,-23900.0,0.00042419,2]
[320856432,1711641033131,-183.0,0.00042704,2]
[320856433,1711641033141,-2407.1,0.00042765,2]
[320856434,1711641033150,-1000.0,0.00042784,2]
[320856435,1711641033159,-164.3717067,0.0004283,2]
[320856436,1711641033168,-161.37,0.00042835,2]
[320856437,1711641033178,-305.39,0.00042886,15]
[320856438,1711641033187,-1530.8,0.00042952,2]
[320856439,1711641033196,-200.0,0.00043194,20]
[320856440,1711641033207,-6410.9005,0.00043269,2]
[320856441,1711641033217,-379.99,0.00043368,2]
[320856442,1711641033227,-380.0,0.00043368,2]
[320856443,1711641033236,-380.0,0.00043369,2]
[320856444,1711641033246,-334.58,0.00043375,2]
[320856445,1711641033255,-380.0,0.00043379,2]
[320856446,1711641033264,-4244.90845113,0.00043401,2]
[320856447,1711641033274,-380.0,0.00043405,2]
[320856448,1711641033284,-380.0,0.00043408,2]
[320856449,1711641033293,-594.24,0.0004343,30]
[320856450,1711641033302,-200.0,0.0004344,2]
[320856451,1711641033311,-12560.32,0.0004344,2]
[320856452,1711641033319,-1792.06,0.00043501,2]
[320856453,1711641033328,-161.37,0.00043566,2]
[320856454,1711641033337,-500.0,0.00044006,2]
[320856455,1711641033346,-1041.70154058,0.0004412,2]
[320856456,1711641037653,-6928.70845942,0.0004412,2]
[320856457,1711641037663,-200.0,0.00044126,25]
[320856458,1711641037672,-800.0,0.00044126,25]
[320856459,1711641037681,-500.0,0.00044126,30]
[320856460,1711641037690,-200.0,0.00044126,30]
[320856461,1711641037699,-713.51,0.0004427,2]
[320856462,1711641037708,-161.37,0.00044298,2]
[320856463,1711641037717,-163.2,0.0004441,2]
[320856464,1711641037726,-4244.90845113,0.00044869,2]
[320856465,1711641037736,-302.50308945,0.00045,60]
[320856466,1711641037747,-784.49691055,0.00045,60]
[320856467,1711641037756,-250.0,0.00045085,112]
[320856468,1711641037765,-1639.63,0.00045125,2]
[320856469,1711641037774,-506.13,0.00045193,2]
[320856470,1711641037783,-624.97597385,0.00045512,10]
[320856471,1711641037793,-305.39,0.00045625,15]
[320856472,1711641037802,-1530.8,0.00045692,2]
[320856473,1711641037812,-180.0,0.00045882,120]
[320856474,1711641037821,-166.11,0.00045885,2]
[320856475,1711641037830,-2400.83,0.00045931,30]
[320856476,1711641037839,-4036.8754571,0.00046,2]
[320856477,1711641037849,-250.0,0.00046149,2]
[320856478,1711641037858,-4244.90845113,0.00046337,2]
[320856479,1711641037867,-193.0,0.00046404,120]
[320856480,1711641037876,-713.51,0.00046534,2]
[320856481,1711641037885,-3218.0,0.00046725,2]
[320856482,1711641037895,-240.86,0.00046726,120]
[320856483,1711641037905,-194.35769463,0.00047,14]
[320856484,1711641037914,-734.6562,0.00047041,2]
[320856485,1711641037924,-163.2,0.00047059,2]
[320856486,1711641037935,-170.11,0.00047131,2]
[320856487,1711641037945,-547.974,0.00047141,2]
[320856488,1711641037955,-961.0,0.00047141,2]
[320856489,1711641037964,-150.807,0.00047141,2]
[320856490,1711641037974,-398.827,0.00047141,2]
[320856491,1711641037983,-150.0,0.00047141,2]
[320856492,1711641037993,-213.0,0.00047141,2]
[320856493,1711641038003,-4765.0,0.00047141,2]
[320856494,1711641038013,-1175.0,0.00047141,2]
[320856495,1711641038023,-3866.55419996,0.00047141,2]
[320856496,1711641038149,-451.45402935,0.00047141,2]
[320856498,1711641038161,-1296.9,0.00047141,2]
[320856529,1711641039773,-896.82497611,0.00046941,2]
[320856530,1711641039785,-1603.17502389,0.00046941,2]
[320856531,1711641039795,-37367.09177069,0.00047141,2]
[320856532,1711641039804,-2448.0,0.00047141,2]
[320856533,1711641039814,-1047.0,0.00047141,2]
[320856534,1711641039823,-180.93,0.00047485,120]
[320856535,1711641039832,-4244.90845113,0.00047805,2]
[320856536,1711641039841,-1832.28974118,0.000479,4]
[320856537,1711641039850,-150.99661816,0.00047927,30]
[320856538,1711641039859,-166.41585679,0.00047937,30]
[320856539,1711641039868,-864.97753015,0.00048,2]
[320856540,1711641039879,-1046.0,0.00048,120]
[320856541,1711641039888,-1000.0,0.00048132,2]
[320856542,1711641039897,-158.78424725,0.00048206,30]
[320856543,1711641039906,-1383.90209894,0.00048261,2]
[320856544,1711641039915,-156.78544637,0.00048346,30]
[320856545,1711641039925,-305.39,0.00048365,15]
[320856546,1711641039934,-1046.77462653,0.00048431,2]
[320856547,1711641039994,-874.86754552,0.00046381,30]
[320856548,1711641040003,-484.02537347,0.00048431,2]
[320856549,1711641040013,-166.78,0.00048482,2]
[320856550,1711641040023,-200.0,0.00048488,25]
[320856551,1711641040033,-800.0,0.00048488,25]
[320856552,1711641040045,-500.0,0.00048488,30]
[320856553,1711641040054,-200.0,0.00048488,30]
[320856554,1711641040065,-158.78424725,0.00048534,30]
[320856555,1711641040074,-368.4424,0.0004858,2]
[320856556,1711641040082,-170.39915139,0.0004858,2]
[320856558,1711641040093,-150.0,0.000486,9]
[320856560,1711641040101,-150.0,0.00048614,7]
[320856562,1711641040110,-150.0,0.00048633,7]
[320856564,1711641040118,-150.0,0.00048636,7]
[320856566,1711641040127,-150.0,0.00048637,7]
[320856567,1711641040138,-155.90287336,0.00048638,30]
[320856570,1711641040147,-1383.90209894,0.00048638,2]
[320856571,1711641040156,-158.78424725,0.00048641,30]
[320856573,1711641040165,-150.0,0.00048644,7]
[320856574,1711641040174,-150.0,0.00048646,7]
[320856576,1711641040183,-150.0,0.00048651,7]
[320856578,1711641040191,-150.0,0.00048654,7]
[320856580,1711641040202,-150.0,0.00048658,7]
[320856581,1711641040211,-150.0,0.00048666,7]
[320856582,1711641040220,-22634.3463,0.0004868,2]
[320856583,1711641040229,-1557.41327629,0.0004868,7]
[320856584,1711641040238,-150.0,0.00048684,7]
[320856585,1711641040247,-300.0,0.00048685,7]
[320856586,1711641040256,-150.0,0.00048686,7]
[320856587,1711641040264,-150.0,0.00048701,7]
[320856588,1711641040274,-150.0,0.0004871,7]
[320856589,1711641040283,-150.0,0.00048712,7]
[320856590,1711641040293,-150.0,0.00048715,7]
[320856591,1711641040302,-150.0,0.00048749,7]
[320856592,1711641040313,-150.0,0.00048751,7]
[320856593,1711641040323,-150.0,0.00048751,7]
[320856594,1711641040332,-150.0,0.00048751,7]
[320856595,1711641040341,-150.0,0.00048757,7]
[320856596,1711641040351,-150.0,0.00048758,7]
[320856597,1711641040360,-150.0,0.00048759,7]
[320856598,1711641040369,-150.0,0.0004876,7]
[320856599,1711641040378,-150.0,0.00048767,7]
[320856600,1711641040387,-154.32016826,0.00048767,7]
[320856601,1711641040397,-150.0,0.00048768,7]
[320856602,1711641040406,-150.0,0.00048774,7]
[320856603,1711641040416,-150.0,0.00048775,7]
[320856604,1711641040426,-957.1328,0.0004878,2]
[320856605,1711641040436,-13569.2917,0.0004878,2]
[320856606,1711641040445,-265.42718518,0.00048788,20]
[320856607,1711641040454,-1000.0,0.00048794,2]
[320856608,1711641040463,-280.80703414,0.00048795,7]
[320856609,1711641040473,-314.75638396,0.00048797,2]
[320856610,1711641040482,-713.51,0.00048798,2]
[320856611,1711641040492,-500.0,0.00048798,2]
[320856612,1711641040501,-730.73671556,0.00048799,4]
[320856613,1711641040510,-364.50363181,0.00048799,2]
[320856614,1711641040519,-150.0,0.00048803,7]
[320856615,1711641040529,-150.0,0.00048808,7]
[320856616,1711641040538,-150.0,0.00048817,7]
[320856617,1711641040548,-150.0,0.00048853,7]
[320856618,1711641040557,-150.0,0.00048855,7]
[320856619,1711641040567,-155.97,0.0004887,2]
[320856620,1711641040576,-150.0,0.00048874,7]
[320856621,1711641040792,-2632.34542249,0.00048878,4]
[320856622,1711641040802,-351.29805,0.00048878,120]
[320856623,1711641040811,-1147.62430112,0.00048878,2]
[320856624,1711641040820,-1350.40630004,0.00048878,2]
[320856625,1711641040829,-542.13216509,0.00048878,4]
[320856626,1711641040839,-242.26779373,0.00048878,4]
[320856627,1711641040848,-224.40373373,0.00048879,2]
[320856628,1711641040858,-1479.489,0.00048879,4]
[320856629,1711641040867,-198.57194492,0.00048879,4]
[320856630,1711641040877,-155.63462026,0.00048879,4]
[320856631,1711641040887,-2395.70672982,0.00048879,4]
[320856632,1711641040896,-1240.14659888,0.00048879,60]
[320856633,1711641040906,-150.0,0.00048879,7]
[320856634,1711641040915,-1006.91,0.00048879,2]
[320856635,1711641040925,-408.21,0.00048879,2]
[320856636,1711641040934,-15950.32988661,0.0004888,2]
[320856637,1711641040947,-17723.59214918,0.0004888,2]
[320856638,1711641040965,-56713.83711395,0.0004888,2]
[320856639,1711641040982,-1397.2518802,0.0004888,2]
[320856640,1711641040994,-1070.24668883,0.0004888,2]
[320856646,1711641042790,-4046.81105324,0.0004888,2]
[320856649,1711641042991,-588.80621434,0.0004888,2]
[320856650,1711641043007,-567.738,0.0004888,2]
[320856651,1711641043095,-80420.63210182,0.0004888,2]
[320856652,1711641043105,-365.16186,0.0004888,44]
[320856653,1711641043114,-183.20085839,0.00048888,2]
[320856654,1711641043124,-155.97,0.00048888,2]
[320856655,1711641043134,-155.97,0.00048888,2]
[320856656,1711641043143,-150.0,0.00048894,60]
[320856657,1711641043152,-471.88057227,0.00048895,2]
[320856658,1711641043161,-878.9273008,0.00048897,2]
[320856659,1711641043170,-63432.01996228,0.00048898,2]
[320856660,1711641043181,-18615.56114748,0.00048898,2]
[320856661,1711641043231,-28371.72564164,0.00048898,2]
[320856680,1711641047749,-2345.35254533,0.00045998,4]
[320856681,1711641047758,-956.36766665,0.00048779,4]
[320856682,1711641047767,-9324.33122827,0.00048898,2]
[320856683,1711641047786,-3404.19767847,0.00048898,2]
[320856684,1711641047799,-9411.37934861,0.00048898,2]
[320856685,1711641047927,-17714.81631792,0.00048898,2]
[320856700,1711641060542,542.49395308,0.00024,15]
[320856701,1711641079011,542.49395308,0.00024,15]
[320856702,1711641098502,164.84936207,0.00024,15]
[320856705,1711641228689,152.30107004,0.00040715,36]
[320856706,1711641238676,406.19755191,0.0002328,2]
[320856707,1711641245018,295.29330756,0.00024,2]
[320856708,1711641246990,862.18496256,0.00024,2]
[320856709,1711641250198,287.53386216,0.00024,2]
[320856710,1711641253471,343.15954798,0.00024,2]
[320856711,1711641253952,155.16822264,0.00024,2]
[320856712,1711641259943,317.71085646,0.00024,2]
[320856713,1711641263981,155.0,0.00024,2]
[320856715,1711641267468,300.0,0.00022116,2]
[320856716,1711641268619,19421.81344936,0.00024,2]
[320856717,1711641271401,300.0,0.0002328,2]
[320856718,1711641271487,155.0,0.0002328,2]
[320856721,1711641286620,1050.0,0.0002328,2]
[320856722,1711641287426,155.16133325,0.0002328,2]
[320856723,1711641328548,749.77420752,0.0002328,2]
[320856729,1711641732056,-155.0,0.00028894,2]
[320856730,1711641732086,-307.10267194,0.00028895,2]
[320856731,1711641732113,-155.0,0.00029,3]
[320856732,1711641732128,-307.10267194,0.00029,3]
[320856733,1711641732143,-649.79465612,0.00029,3]
[320856754,1711641862293,152.30107003,0.00040739,36]
[320856755,1711641946134,-331.99556312,0.00028999,2]
[320856756,1711641946156,-138.10267194,0.00029,3]
[320856757,1711641946180,-1300.0,0.00031,3]
[320856758,1711641946205,-1350.0,0.00033,3]
[320856759,1711641946227,-155.0,0.00034999,4]
[320856760,1711641946250,-3900.0,0.00035,7]
[320856761,1711641946273,-1400.0,0.00035,3]
[320856762,1711641946296,-231.0,0.000361,2]
[320856763,1711641946319,-365.351025,0.00036815,2]
[320856764,1711641946339,-1450.0,0.00037,3]
[320856765,1711641946360,-150.99,0.00037,10]
[320856766,1711641946382,-164.3717067,0.00038605,2]
[320856767,1711641946405,-499.99,0.00038605,2]
[320856768,1711641946426,-308.56382127,0.00038998,4]
[320856769,1711641946445,-18092.82652741,0.00039,3]
[320856799,1711642231981,-155.0,0.00038772,4]
[320856800,1711642231991,-118.0187,0.00038773,120]
[320856801,1711642232039,-31.9813,0.00038773,120]
[320856802,1711642232049,-5194.63818491,0.00039,3]
[320856803,1711642232058,-1500.0,0.00039,3]
[320856804,1711642232068,-150.0,0.00039248,120]
[320856805,1711642232077,-7709.7977965,0.0004,7]
[320856806,1711642232086,-570.8,0.00040038,2]
[320856807,1711642232096,-163.2,0.00040551,2]
[320856808,1711642232104,-254.6582,0.00040639,2]
[320856809,1711642232113,-180.93,0.00040655,120]
[320856810,1711642232123,-2719.95902612,0.00040714,2]
[320856811,1711642232133,-315.36634634,0.00040738,10]
[320856812,1711642232142,-4046.81105324,0.00040738,7]
[320856813,1711642232151,-7832.87885304,0.00040738,2]
[320856814,1711642232161,-504.38479616,0.00040738,7]
[320856815,1711642232170,-43505.10946707,0.00040738,2]
[320856816,1711642232179,-18917.49145709,0.00040738,3]
[320856817,1711642232188,-2163.35635638,0.00040738,14]
[320856818,1711642232198,-3829.00128765,0.00040738,3]
[320856819,1711642232207,-1782.8555296,0.00040738,2]
[320856820,1711642232216,-336.72002008,0.00040738,2]
[320856821,1711642232226,-1610.31037854,0.00040738,2]
[320856822,1711642232236,-451.94,0.00040739,2]
[320856823,1711642232245,-250.0,0.0004076,112]
[320856824,1711642232255,-306.23,0.0004076,2]
[320856825,1711642232265,-250.0,0.00040865,2]
[320856826,1711642232275,-1550.0,0.00041,3]
[320856827,1711642232284,-500.0,0.0004106,2]
[320856828,1711642232293,-183.0,0.00041096,2]
[320856829,1711642232303,-255.4,0.00041762,2]
[320856830,1711642232312,-150.0,0.00042131,120]
[320856831,1711642232321,-570.8,0.00042302,2]
[320856832,1711642232331,-150.0,0.00042507,120]
[320856833,1711642232340,-250.0,0.00042923,2]
[320856834,1711642232349,-1600.0,0.00043,3]
[320856835,1711642232359,-411.72,0.00043291,2]
[320856836,1711642232370,-272.33,0.00043529,15]
[320856837,1711642232379,-1000.0,0.00043535,2]
[320856838,1711642232390,-570.8,0.00044565,2]
[320856839,1711642232400,-2546.94507075,0.00044579,2]
[320856840,1711642232409,-10628.01400101,0.00044579,2]
[320856841,1711642232418,-163.2,0.00044667,2]
[320856842,1711642232427,-1650.0,0.00045,3]
[320856843,1711642232436,-200.0,0.00045221,25]
[320856844,1711642232446,-3637.42,0.0004565,2]
[320856845,1711642232456,-42982.0,0.0004565,2]
[320856846,1711642232466,-252.59,0.0004565,2]
[320856847,1711642232476,-1573.685,0.00045731,2]
[320856848,1711642232486,-10628.01400099,0.00045794,2]
[320856849,1711642232495,-2546.94507067,0.00045825,2]
[320856850,1711642232505,-48651.7562,0.00045831,2]
[320856851,1711642232514,-1513.27358811,0.00046,2]
[320856853,1711642232523,-500.0,0.00046237,2]
[320856855,1711642232533,-272.33,0.00046269,15]
[320856857,1711642232543,-150.0,0.00046478,120]
[320856859,1711642232552,-1813.0,0.000468,7]
[320856861,1711642232561,-200.0,0.00046826,25]
[320856863,1711642232570,-800.0,0.00046826,25]
[320856865,1711642232579,-500.0,0.00046826,30]
[320856868,1711642232589,-200.0,0.00046826,30]
[320856871,1711642232598,-570.8,0.00046829,2]
[320856874,1711642232607,-157.01416745,0.000469,2]
[320856877,1711642232616,-22118.88,0.00046936,2]
[320856880,1711642232626,-237.28245259,0.00047,14]
[320856883,1711642232637,-1700.0,0.00047,3]
[320856886,1711642232646,-10628.01400099,0.00047009,2]
[320856889,1711642232656,-2546.94507067,0.0004707,2]
[320856892,1711642232665,-213.0,0.00047143,2]
[320856895,1711642232675,-155.13,0.00047189,120]
[320856898,1711642232685,-858.80913472,0.00047828,30]
[320856901,1711642232694,-858.80913472,0.00047841,30]
[320856904,1711642232704,-150.0,0.00047998,120]
[320856907,1711642232713,-864.97753015,0.00048,2]
[320856910,1711642232723,-3363.51857149,0.00048,120]
[320856913,1711642232733,-1200.0,0.0004805,30]
[320856916,1711642232743,-500.0,0.0004805,30]
[320856918,1711642232753,-170.12,0.00048215,2]
[320856919,1711642232763,-156.78544637,0.00048216,30]
[320856922,1711642232773,-10628.01400099,0.00048225,2]
[320856924,1711642232782,-2546.94507067,0.00048316,2]
[320856926,1711642232792,-1200.0,0.00048324,30]
[320856928,1711642232801,-150.99661816,0.0004834,30]
[320856930,1711642232810,-304.30155,0.0004841,42]
[320856932,1711642232820,-153.07174794,0.00048574,30]
[320856934,1711642232829,-1200.0,0.00048598,30]
[320856936,1711642232838,-500.0,0.00048598,30]
[320856938,1711642232847,-150.0,0.000486,9]
[320856940,1711642232856,-1383.90209895,0.00048615,2]
[320856941,1711642232866,-42982.0,0.0004865,2]
[320856943,1711642232875,-1033.0,0.000487,117]
[320856944,1711642232886,-654.81643858,0.00048734,13]
[320856945,1711642232896,-151.08183785,0.00048753,30]
[320856946,1711642232905,-156.37175085,0.00048755,30]
[320856947,1711642232913,-163.2,0.00048784,2]
[320856948,1711642232922,-164.67974369,0.00048784,25]
[320856949,1711642232932,-265.42718518,0.00048784,20]
[320856950,1711642232941,-314.75638395,0.00048784,2]
[320856951,1711642232951,-151.68256544,0.00048795,40]
[320856952,1711642232961,-2076.78166795,0.00048796,25]
[320856953,1711642232970,-257.8190426,0.000488,17]
[320856954,1711642232983,-142.1809574,0.000488,17]
[320856955,1711642232993,-155.97,0.0004887,2]
[320856956,1711642233002,-155.97,0.0004887,2]
[320856957,1711642233012,-1200.0,0.00048872,30]
[320856958,1711642233021,-1658.05823016,0.00048877,2]
[320856959,1711642233033,-1278.0875529,0.00048877,2]
[320856960,1711642233043,-23.58467344,0.0004888,2]
[320856961,1711642233082,-1111.58228369,0.0004888,2]
[320856962,1711642233098,-21711.59999359,0.0004888,2]
[320856964,1711642237831,-379.99,0.00046094,2]
[320856965,1711642237841,-418.26507221,0.0004888,2]
[320856969,1711642238314,-7118.1078,0.0004888,2]
[320856970,1711642238325,-742081.75663325,0.0004888,2]
[320856976,1711642238473,-50395.61095329,0.0004888,2]
[320857015,1711642240066,-594.24,0.0004887,30]
[320857016,1711642240077,-141097.70825497,0.0004888,2]
[320857022,1711642242982,-380.0,0.00046104,2]
[320857023,1711642242992,-380.0,0.00046119,2]
[320857024,1711642243002,-162.32142757,0.00048649,120]
[320857025,1711642243012,-2089.22220706,0.0004888,2]
[320857026,1711642243039,-1167.507,0.0004888,2]
[320857027,1711642243259,-380.0,0.00046094,2]
[320857028,1711642243268,-16.38778117,0.0004888,2]
[320857029,1711642243424,-16161.88300779,0.0004888,2]
[320857030,1711642243437,-5866.74233429,0.0004888,2]
[320857031,1711642243450,-23013.07313505,0.0004888,2]
[320857032,1711642243465,-3287.7343096,0.0004888,2]
[320857033,1711642243477,-55931.75394112,0.0004888,2]
[320857034,1711642243495,-1458.78306831,0.0004888,2]
[320857035,1711642243506,-49167.2256111,0.0004888,2]
[320857036,1711642243515,-153.07174794,0.00048884,30]
[320857037,1711642243525,-6503.9387235,0.00048888,2]
[320857038,1711642243534,-1874.6676852,0.00048888,2]
[320857039,1711642243543,-419.44939758,0.00048895,2]
[320857041,1711642243553,-1600.00493237,0.00048896,4]
[320857043,1711642243562,-155.78085468,0.00048896,4]
[320857044,1711642243572,-343.0245259,0.00048896,4]
[320857045,1711642243583,-446.02261039,0.00048897,2]
[320857046,1711642243594,-11752.20226143,0.00048898,2]
[320857048,1711642243606,-4984.37144443,0.00048898,2]
[320857052,1711642246066,-349.811,0.00046101,2]
[320857053,1711642246242,-30.189,0.00046101,2]
[320857054,1711642246252,-334.58,0.00046129,2]
[320857055,1711642246261,-380.0,0.0004613,2]
[320857056,1711642246271,-315.73814616,0.00048879,120]
[320857057,1711642246282,-441.11273066,0.00048879,120]
[320857058,1711642246292,-287.2382675,0.00048879,4]
[320857059,1711642246301,-5821.69134358,0.00048898,2]
[320857060,1711642428639,152.30107002,0.00040738,36]
[320857061,1711643346464,-1250.0,0.00029,3]
[320857062,1711643346485,-200.48459506,0.0003,3]
[320857063,1711643346506,-1166.22390494,0.00031,3]
[320857072,1711643432152,-133.77609506,0.00031,3]
[320857073,1711643432162,-1350.0,0.00033,3]
[320857074,1711643432171,-164.3717067,0.000389,2]
[320857075,1711643432181,-1886.00219824,0.00038999,4]
[320857076,1711643432215,-409.87361269,0.00038999,4]
[320857077,1711643432224,-173.37121215,0.00039,2]
[320857078,1711643432233,-561.1982,0.0004066,2]
[320857079,1711643432243,-670.459,0.0004066,2]
[320857080,1711643432252,-3077.72305345,0.0004076,2]
[320857081,1711643432263,-371.02694655,0.0004076,2]
[320857082,1711643432273,-599.32,0.0004421,2]
[320857083,1711643432282,-507.32561336,0.00044579,2]
[320857084,1711643432382,-105.12798664,0.00044579,2]
[320857085,1711643432391,-1167.9647,0.00045,60]
[320857086,1711643432401,-159.05,0.00045279,2]
[320857087,1711643432410,-233.34,0.00045333,2]
[320857088,1711643432420,-1792.06,0.00045357,2]
[320857089,1711643432429,-509.58,0.00045444,2]
[320857090,1711643432440,-29489.0,0.00045444,2]
[320857091,1711643432449,-183.0,0.00045518,2]
[320857092,1711643432459,-250.0,0.00045615,120]
[320857093,1711643432468,-500.0,0.00045626,2]
[320857094,1711643432478,-1436.32,0.00045657,2]
[320857095,1711643432487,-1782.49,0.00045667,2]
[320857096,1711643432496,-286.25,0.00045692,15]
[320857099,1711643432505,-2530.7208,0.00045694,2]
[320857101,1711643432514,-2407.1,0.00045835,2]
[320857103,1711643432523,-250.0,0.00045835,112]
[320857105,1711643432532,-23890.0,0.00045835,2]
[320857107,1711643432542,-1148.43341873,0.0004586,2]
[320857109,1711643432551,-800.0,0.00045882,2]
[320857111,1711643432560,-1909.38,0.000459,2]
[320857113,1711643432569,-4164.95,0.00045932,60]
[320857115,1711643432579,-155.13,0.0004596,120]
[320857117,1711643432588,-450.43164634,0.00045962,4]
[320857119,1711643432598,-3194.04,0.0004598,2]
[320857121,1711643432607,-1043.30142532,0.00046022,4]
[320857122,1711643432616,-12560.32,0.00046023,2]
[320857123,1711643432626,-500.0,0.00046398,2]
[320857124,1711643432635,-599.32,0.00046474,2]
[320857125,1711643432644,-200.0,0.00046475,25]
[320857126,1711643432654,-702.75,0.00046475,2]
[320857127,1711643432663,-453.0,0.000466,120]
[320857128,1711643432673,-12217.592,0.00046679,2]
[320857129,1711643432682,-6855.2803,0.0004684,2]
[320857130,1711643432692,-200.0,0.00046844,2]
[320857131,1711643432702,-150.0,0.00046869,2]
[320857132,1711643432713,-796.82,0.00046869,2]
[320857133,1711643432723,-1041.7,0.00046869,2]
[320857134,1711643432732,-200.0,0.00046869,2]
[320857135,1711643432742,-212.83,0.00046874,120]
[320857136,1711643432751,-1148.43341872,0.00046901,2]
[320857137,1711643432761,-344.4716094,0.00047,120]
[320857138,1711643432770,-200.0,0.00047096,2]
[320857139,1711643432780,-164.09,0.00047221,2]
[320857140,1711643432790,-1558.026,0.00047747,2]
[320857141,1711643432799,-2511.68026693,0.00047941,2]
[320857142,1711643432808,-1148.43341872,0.00047941,2]